lending/lending_fUSD_20250318
["ID","MTS","AMOUNT","RATE_DAILY","PERIOD"]
[356360395,1742339457578,-584.29,0.00035616,12]
[356360396,1742339457587,-1360.65,0.00035616,12]
[356360397,1742339457596,-500.0,0.00035616,12]
[356360398,1742339457606,-500.0,0.00035616,12]
[356360399,1742339457615,-675.44,0.00035616,12]
[356360400,1742339457624,-500.0,0.00035616,12]
[356360401,1742339457634,-500.0,0.00035616,12]
[356360402,1742339457643,-500.0,0.00035616,12]
[356360403,1742339457653,-535.37,0.00035616,12]
[356360404,1742339457662,-500.0,0.00035616,12]
[356360405,1742339457671,-940.73,0.00035616,12]
[356360406,1742339457682,-500.0,0.00035616,12]
[356360407,1742339457691,-500.0,0.00035616,12]
[356360408,1742339457701,-500.0,0.00035616,12]
[356360409,1742339457710,-500.0,0.00035616,12]
[356360410,1742339457719,-661.64,0.00035616,12]
[356360411,1742339457728,-500.0,0.00035616,12]
[356360412,1742339457738,-500.0,0.00035616,12]
[356360413,1742339457748,-628.6,0.00035616,12]
[356360414,1742339457758,-414.44074721,0.00035616,12]
[356360415,1742339457770,-872.38,0.00035616,12]
[356360416,1742339457780,-500.0,0.00035616,12]
[356360417,1742339457790,-671.95,0.00035616,12]
[356360418,1742339457799,-500.0,0.00035616,12]
[356360419,1742339457810,-500.0,0.00035616,12]
[356360420,1742339457819,-500.0,0.00035616,12]
[356360421,1742339457828,-443.18033865,0.00035616,12]
[356360422,1742339457838,-329.21149619,0.00035616,12]
[356360423,1742339457848,-589.35,0.00035616,12]
[356360424,1742339457859,-500.0,0.00035616,12]
[356360425,1742339457870,-500.0,0.00035616,12]
[356360426,1742339457879,-3196.67,0.00035616,12]
[356360427,1742339457889,-500.0,0.00035616,12]
[356360428,1742339457898,-3196.67,0.00035616,12]
[356360429,1742339457908,-503.82125364,0.00035616,12]
[356360430,1742339457917,-500.0,0.00035616,12]
[356360431,1742339457927,-3196.67,0.00035616,12]
[356360432,1742339457936,-3196.67,0.00035616,12]
[356360433,1742339457945,-3196.67,0.00035616,12]
[356360434,1742339457955,-3196.67,0.00035616,12]
[356360435,1742339457964,-500.0,0.00035616,12]
[356360436,1742339457974,-3196.67,0.00035616,12]
[356360437,1742339457983,-3196.67,0.00035616,12]
[356360438,1742339457992,-500.0,0.00035616,12]
[356360439,1742339458001,-3196.67,0.00035616,12]
[356360440,1742339458010,-3196.67,0.00035616,12]
[356360441,1742339458020,-500.0,0.00035616,12]
[356360442,1742339458029,-3196.67,0.00035616,12]
[356360443,1742339458038,-3196.67,0.00035616,12]
[356360444,1742339458047,-500.0,0.00035616,12]
[356360445,1742339458057,-2111.58,0.00035616,12]
[356360446,1742339458066,-3196.67,0.00035616,12]
[356360447,1742339458075,-3196.67,0.00035616,12]
[356360448,1742339458084,-3196.67,0.00035616,12]
[356360449,1742339458094,-1118.44,0.00035616,12]
[356360450,1742339458103,-3196.67,0.00035616,12]
[356360451,1742339458113,-3196.67,0.00035616,12]
[356360452,1742339458122,-3196.67,0.00035616,12]
[356360453,1742339458131,-500.0,0.00035616,12]
[356360454,1742339458141,-500.0,0.00035616,12]
[356360455,1742339458150,-952.51,0.00035616,12]
[356360456,1742339458159,-500.0,0.00035616,12]
[356360457,1742339458168,-1141.77,0.00035616,12]
[356360458,1742339458178,-500.0,0.00035616,12]
[356360459,1742339458187,-509.9,0.00035616,12]
[356360460,1742339458197,-786.29,0.00035616,12]
[356360461,1742339458206,-500.0,0.00035616,12]
[356360462,1742339458215,-885.74,0.00035616,12]
[356360463,1742339458224,-500.0,0.00035616,12]
[356360464,1742339458233,-500.0,0.00035616,12]
[356360465,1742339458243,-500.0,0.00035616,12]
[356360466,1742339458252,-500.0,0.00035616,12]
[356360467,1742339458261,-853.02,0.00035616,12]
[356360468,1742339458269,-500.0,0.00035616,12]
[356360469,1742339458278,-500.0,0.00035616,12]
[356360470,1742339458286,-500.0,0.00035616,12]
[356360471,1742339458295,-500.0,0.00035616,12]
[356360472,1742339458305,-500.0,0.00035616,12]
[356360473,1742339458315,-500.0,0.00035616,12]
[356360474,1742339458324,-930.16,0.00035616,12]
[356360475,1742339458332,-500.0,0.00035616,12]
[356360476,1742339458342,-534.99,0.00035616,12]
[356360477,1742339458351,-500.0,0.00035616,12]
[356360478,1742339458361,-554.71,0.00035616,12]
[356360479,1742339458371,-252.68234668,0.00035616,12]
[356360480,1742339458380,-500.0,0.00035616,12]
[356360481,1742339458390,-1096.04,0.00035616,12]
[356360482,1742339458399,-387.14243872,0.00035616,12]
[356360483,1742339458409,-500.0,0.00035616,12]
[356360484,1742339458419,-669.21,0.00035616,12]
[356360485,1742339458429,-500.0,0.00035616,12]
[356360486,1742339458439,-2116.57,0.00035616,12]
[356360487,1742339458449,-500.0,0.00035616,12]
[356360488,1742339458459,-500.0,0.00035616,12]
[356360489,1742339458469,-500.0,0.00035616,12]
[356360490,1742339458478,-500.0,0.00035616,12]
[356360491,1742339458488,-500.0,0.00035616,12]
[356360492,1742339458497,-500.0,0.00035616,12]
[356360493,1742339458507,-500.0,0.00035616,12]
[356360494,1742339458516,-824.59,0.00035616,12]
[356360495,1742339458526,-1273.18,0.00035616,12]
[356360496,1742339458535,-500.0,0.00035616,12]
[356360497,1742339458545,-662.07,0.00035616,12]
[356360498,1742339458554,-500.0,0.00035616,12]
[356360499,1742339458563,-500.0,0.00035616,12]
[356360500,1742339458573,-1001.65,0.00035616,12]
[356360501,1742339458582,-865.19,0.00035616,12]
[356360502,1742339458592,-500.0,0.00035616,12]
[356360503,1742339458600,-569.57,0.00035616,12]
[356360504,1742339458610,-850.25,0.00035616,12]
[356360505,1742339458619,-2025.31,0.00035616,12]
[356360506,1742339458628,-500.0,0.00035616,12]
[356360507,1742339458637,-500.0,0.00035616,12]
[356360508,1742339458647,-500.0,0.00035616,12]
[356360509,1742339458657,-500.0,0.00035616,12]
[356360510,1742339458666,-500.0,0.00035616,12]
[356360511,1742339458676,-1125.43,0.00035616,12]
[356360512,1742339458686,-500.0,0.00035616,12]
[356360513,1742339458695,-1034.97,0.00035616,12]
[356360514,1742339458705,-736.13,0.00035616,12]
[356360515,1742339458714,-500.0,0.00035616,12]
[356360516,1742339458724,-500.0,0.00035616,12]
[356360517,1742339458733,-500.0,0.00035616,12]
[356360518,1742339458742,-500.0,0.00035616,12]
[356360519,1742339458752,-500.0,0.00035616,12]
[356360520,1742339458761,-500.0,0.00035616,12]
[356360521,1742339458774,-500.0,0.00035616,12]
[356360522,1742339458784,-500.0,0.00035616,12]
[356360523,1742339458793,-500.0,0.00035616,12]
[356360524,1742339458803,-705.75,0.00035616,12]
[356360525,1742339458813,-507.82041872,0.00035616,12]
[356360526,1742339458822,-500.0,0.00035616,12]
[356360527,1742339458832,-500.0,0.00035616,12]
[356360528,1742339458842,-1168.81,0.00035616,12]
[356360529,1742339458854,-500.0,0.00035616,12]
[356360530,1742339458864,-500.0,0.00035616,12]
[356360531,1742339458874,-500.0,0.00035616,12]
[356360532,1742339458884,-298.7649981,0.00035616,12]
[356360533,1742339458893,-909.53,0.00035616,12]
[356360534,1742339458903,-1214.66,0.00035616,12]
[356360535,1742339458912,-500.0,0.00035616,12]
[356360536,1742339458922,-500.0,0.00035616,12]
[356360537,1742339458932,-750.56,0.00035616,12]
[356360538,1742339458942,-500.0,0.00035616,12]
[356360539,1742339458952,-2000.0,0.00035616,30]
[356360540,1742339458961,-500.0,0.00035616,12]
[356360541,1742339458970,-200.0,0.00035616,7]
[356360542,1742339458980,-999.43,0.00035616,12]
[356360543,1742339458989,-500.0,0.00035616,12]
[356360544,1742339458999,-500.0,0.00035616,12]
[356360545,1742339459009,-500.0,0.00035616,12]
[356360546,1742339459019,-500.0,0.00035616,12]
[356360547,1742339459028,-912.96,0.00035616,12]
[356360548,1742339459038,-500.0,0.00035616,12]
[356360549,1742339459048,-500.0,0.00035616,12]
[356360550,1742339459057,-500.0,0.00035616,12]
[356360551,1742339459066,-500.0,0.00035616,12]
[356360552,1742339459076,-628.87,0.00035616,12]
[356360553,1742339459085,-500.0,0.00035616,12]
[356360554,1742339459095,-500.0,0.00035616,12]
[356360555,1742339459104,-1022.31,0.00035616,12]
[356360556,1742339459114,-500.0,0.00035616,12]
[356360557,1742339459123,-500.0,0.00035616,12]
[356360558,1742339459133,-500.0,0.00035616,12]
[356360559,1742339459143,-522.2025307,0.00035616,12]
[356360560,1742339459151,-500.0,0.00035616,2]
[356360561,1742339459161,-664.59,0.00035616,12]
[356360562,1742339459171,-500.0,0.00035616,12]
[356360563,1742339459181,-970.21,0.00035616,12]
[356360564,1742339459190,-500.0,0.00035616,12]
[356360565,1742339459200,-1253.42,0.00035616,12]
[356360566,1742339459210,-605.69,0.00035616,12]
[356360567,1742339459219,-1388.92,0.00035616,12]
[356360568,1742339459229,-500.0,0.00035616,12]
[356360569,1742339459239,-500.0,0.00035616,12]
[356360570,1742339459248,-601.31406262,0.00035616,12]
[356360571,1742339459257,-500.0,0.00035616,12]
[356360572,1742339459267,-500.0,0.00035616,12]
[356360573,1742339459276,-500.0,0.00035616,12]
[356360574,1742339459286,-500.0,0.00035616,12]
[356360575,1742339459295,-500.0,0.00035616,12]
[356360576,1742339459304,-500.0,0.00035616,12]
[356360577,1742339459314,-506.78994114,0.00035616,12]
[356360578,1742339459323,-1024.33,0.00035616,12]
[356360579,1742339459333,-500.0,0.00035616,12]
[356360580,1742339459342,-603.22,0.00035616,12]
[356360581,1742339459352,-747.21,0.00035616,12]
[356360582,1742339459362,-500.0,0.00035616,12]
[356360583,1742339459371,-500.0,0.00035616,12]
[356360584,1742339459380,-500.0,0.00035616,12]
[356360585,1742339459499,-500.0,0.00035616,12]
[356360586,1742339459518,-500.0,0.00035616,12]
[356360587,1742339459528,-1242.02,0.00035616,12]
[356360588,1742339459537,-500.0,0.00035616,12]
[356360589,1742339459546,-511.79025572,0.00035616,12]
[356360590,1742339459555,-500.0,0.00035616,12]
[356360591,1742339459564,-843.17,0.00035616,12]
[356360592,1742339459578,-331.43464083,0.00035616,12]
[356360593,1742339459588,-500.0,0.00035616,12]
[356360594,1742339459598,-500.0,0.00035616,12]
[356360595,1742339459607,-535.11,0.00035616,12]
[356360596,1742339459617,-532.91,0.00035616,12]
[356360597,1742339459627,-500.0,0.00035616,12]
[356360598,1742339459637,-500.0,0.00035616,12]
[356360599,1742339459646,-536.51,0.00035616,7]
[356360600,1742339459656,-500.0,0.00035616,12]
[356360601,1742339459666,-522.56347615,0.00035616,12]
[356360602,1742339459675,-500.0,0.00035616,12]
[356360603,1742339459685,-864.22,0.00035616,12]
[356360604,1742339459695,-500.0,0.00035616,12]
[356360605,1742339459705,-838.26,0.00035616,12]
[356360606,1742339459715,-500.0,0.00035616,12]
[356360607,1742339459725,-500.0,0.00035616,12]
[356360608,1742339459735,-500.0,0.00035616,12]
[356360609,1742339459745,-300.0,0.00035616,2]
[356360610,1742339459756,-334.12731834,0.00035616,12]
[356360611,1742339459767,-500.0,0.00035616,12]
[356360612,1742339459780,-500.0,0.00035616,12]
[356360613,1742339459790,-500.0,0.00035616,12]
[356360614,1742339459800,-500.0,0.00035616,12]
[356360615,1742339459810,-500.0,0.00035616,12]
[356360616,1742339459822,-500.0,0.00035616,12]
[356360617,1742339459832,-500.0,0.00035616,12]
[356360618,1742339459844,-1425.59,0.00035616,12]
[356360619,1742339459854,-500.0,0.00035616,12]
[356360620,1742339459864,-500.0,0.00035616,12]
[356360621,1742339459876,-500.0,0.00035616,12]
[356360622,1742339459886,-500.0,0.00035616,12]
[356360623,1742339459896,-1035.77,0.00035616,12]
[356360624,1742339459906,-500.0,0.00035616,12]
[356360625,1742339459916,-500.0,0.00035616,12]
[356360626,1742339459928,-1119.9,0.00035616,12]
[356360627,1742339459939,-500.0,0.00035616,12]
[356360628,1742339459951,-500.0,0.00035616,12]
[356360629,1742339459961,-500.0,0.00035616,12]
[356360630,1742339459971,-500.0,0.00035616,12]
[356360631,1742339459982,-940.64,0.00035616,12]
[356360632,1742339459992,-500.0,0.00035616,12]
[356360633,1742339460002,-500.0,0.00035616,12]
[356360634,1742339460013,-757.19,0.00035616,12]
[356360635,1742339460024,-519.72821405,0.00035616,12]
[356360636,1742339460034,-500.0,0.00035616,12]
[356360637,1742339460045,-500.0,0.00035616,12]
[356360638,1742339460055,-500.0,0.00035616,12]
[356360639,1742339460066,-500.0,0.00035616,12]
[356360640,1742339460077,-1602.15,0.00035616,12]
[356360641,1742339460088,-500.0,0.00035616,12]
[356360642,1742339460098,-500.0,0.00035616,12]
[356360643,1742339460108,-1002.8,0.00035616,12]
[356360644,1742339460118,-500.0,0.00035616,12]
[356360645,1742339460129,-511.37638433,0.00035616,12]
[356360646,1742339460139,-1198.43,0.00035616,12]
[356360647,1742339460150,-1331.13,0.00035616,12]
[356360648,1742339460160,-500.0,0.00035616,12]
[356360649,1742339460170,-500.0,0.00035616,12]
[356360650,1742339460180,-500.0,0.00035616,12]
[356360651,1742339460191,-649.81,0.00035616,12]
[356360652,1742339460202,-500.0,0.00035616,12]
[356360653,1742339460212,-500.0,0.00035616,12]
[356360654,1742339460222,-999.15,0.00035616,12]
[356360655,1742339460232,-2598.97,0.00035616,12]
[356360656,1742339460242,-503.41830425,0.00035616,12]
[356360657,1742339460252,-500.0,0.00035616,12]
[356360658,1742339460262,-3644.21,0.00035616,12]
[356360659,1742339460273,-523.96384091,0.00035616,12]
[356360660,1742339460283,-500.0,0.00035616,12]
[356360661,1742339460293,-500.0,0.00035616,12]
[356360662,1742339460303,-503.39290821,0.00035616,12]
[356360663,1742339460313,-500.0,0.00035616,12]
[356360664,1742339460323,-500.0,0.00035616,12]
[356360665,1742339460333,-500.0,0.00035616,12]
[356360666,1742339460343,-500.0,0.00035616,12]
[356360667,1742339460354,-583.91183825,0.00035616,12]
[356360668,1742339460366,-505.44656873,0.00035616,12]
[356360669,1742339460376,-1387.99,0.00035616,12]
[356360670,1742339460387,-843.24,0.00035616,12]
[356360671,1742339460397,-500.0,0.00035616,12]
[356360672,1742339460407,-2465.62,0.00035616,12]
[356360673,1742339460418,-609.77,0.00035616,12]
[356360674,1742339460429,-975.0,0.00035616,12]
[356360675,1742339460439,-974.58,0.00035616,12]
[356360676,1742339460449,-1078.91,0.00035616,12]
[356360677,1742339460459,-500.0,0.00035616,12]
[356360678,1742339460469,-500.0,0.00035616,12]
[356360679,1742339460480,-2236.78,0.00035616,12]
[356360680,1742339460490,-1919.16,0.00035616,12]
[356360681,1742339460500,-503.90515323,0.00035616,12]
[356360682,1742339460510,-2066.04,0.00035616,12]
[356360683,1742339460520,-500.0,0.00035616,12]
[356360684,1742339460530,-527.48989021,0.00035616,12]
[356360685,1742339460540,-1744.56,0.00035616,12]
[356360686,1742339460550,-500.0,0.00035616,12]
[356360687,1742339460560,-924.09,0.00035616,12]
[356360688,1742339460570,-500.0,0.00035616,12]
[356360689,1742339460581,-500.0,0.00035616,12]
[356360690,1742339460591,-503.618049,0.00035616,12]
[356360691,1742339460601,-500.0,0.00035616,12]
[356360692,1742339460611,-965.89,0.00035616,12]
[356360693,1742339460621,-630.53,0.00035616,12]
[356360694,1742339460632,-500.0,0.00035616,12]
[356360695,1742339460641,-2170.13,0.00035616,7]
[356360696,1742339460651,-500.0,0.00035616,12]
[356360697,1742339460662,-500.0,0.00035616,12]
[356360698,1742339460671,-500.0,0.00035616,12]
[356360699,1742339460682,-603.35945447,0.00035616,12]
[356360700,1742339460692,-500.0,0.00035616,12]
[356360701,1742339460702,-4236.85,0.00035616,12]
[356360702,1742339460712,-500.0,0.00035616,12]
[356360703,1742339460722,-500.0,0.00035616,12]
[356360704,1742339460732,-701.55,0.00035616,12]
[356360705,1742339460742,-940.24,0.00035616,12]
[356360706,1742339460753,-2071.16,0.00035616,12]
[356360707,1742339460763,-2364.63,0.00035616,12]
[356360708,1742339460777,-1084.3,0.00035616,12]
[356360709,1742339460787,-253.62964003,0.00035616,12]
[356360710,1742339460797,-500.0,0.00035616,12]
[356360711,1742339460807,-833.55,0.00035616,12]
[356360712,1742339460818,-1166.33,0.00035616,12]
[356360713,1742339460830,-500.0,0.00035616,12]
[356360714,1742339460840,-500.0,0.00035616,12]
[356360715,1742339460852,-500.0,0.00035616,12]
[356360716,1742339460865,-500.0,0.00035616,12]
[356360717,1742339460875,-1018.16,0.00035616,12]
[356360718,1742339460885,-500.0,0.00035616,12]
[356360719,1742339460895,-500.0,0.00035616,12]
[356360720,1742339460905,-3791.02,0.00035616,12]
[356360721,1742339460914,-500.0,0.00035616,12]
[356360722,1742339460924,-722.87,0.00035616,12]
[356360723,1742339460934,-500.0,0.00035616,12]
[356360724,1742339460944,-591.18,0.00035616,12]
[356360725,1742339460954,-500.0,0.00035616,12]
[356360726,1742339460964,-500.0,0.00035616,12]
[356360727,1742339460973,-627.35,0.00035616,12]
[356360728,1742339460983,-500.0,0.00035616,12]
[356360729,1742339460992,-500.0,0.00035616,12]
[356360730,1742339461003,-500.0,0.00035616,12]
[356360731,1742339461013,-500.0,0.00035616,12]
[356360732,1742339461023,-427.04343619,0.00035616,12]
[356360733,1742339461033,-433.99,0.00035616,12]
[356360734,1742339461043,-500.0,0.00035616,12]
[356360735,1742339461053,-2218.35,0.00035616,12]
[356360736,1742339461063,-500.0,0.00035616,12]
[356360737,1742339461073,-2207.71,0.00035616,12]
[356360738,1742339461083,-500.0,0.00035616,12]
[356360739,1742339461092,-500.0,0.00035616,12]
[356360740,1742339461102,-1038.13,0.00035616,12]
[356360741,1742339461113,-500.0,0.00035616,12]
[356360742,1742339461123,-500.0,0.00035616,12]
[356360743,1742339461133,-7286.97,0.00035616,2]
[356360744,1742339461142,-500.0,0.00035616,12]
[356360745,1742339461152,-662.54,0.00035616,12]
[356360746,1742339461163,-4093.1,0.00035616,12]
[356360747,1742339461173,-500.0,0.00035616,12]
[356360748,1742339461183,-500.0,0.00035616,12]
[356360749,1742339461193,-617.61,0.00035616,12]
[356360750,1742339461203,-216.80068405,0.00035616,12]
[356360751,1742339461212,-500.0,0.00035616,12]
[356360752,1742339461222,-884.25,0.00035616,12]
[356360753,1742339461232,-500.0,0.00035616,12]
[356360754,1742339461242,-568.35,0.00035616,12]
[356360755,1742339461252,-500.0,0.00035616,12]
[356360756,1742339461262,-1249.76,0.00035616,12]
[356360757,1742339461272,-2314.16,0.00035616,12]
[356360758,1742339461281,-590.8,0.00035616,12]
[356360759,1742339461291,-605.74,0.00035616,12]
[356360760,1742339461300,-4019.27,0.00035616,12]
[356360761,1742339461310,-500.0,0.00035616,12]
[356360762,1742339461319,-500.0,0.00035616,12]
[356360763,1742339461329,-500.0,0.00035616,12]
[356360764,1742339461338,-845.44,0.00035616,12]
[356360765,1742339461347,-500.0,0.00035616,12]
[356360766,1742339461358,-500.0,0.00035616,12]
[356360767,1742339461367,-500.0,0.00035616,12]
[356360768,1742339461377,-500.0,0.00035616,12]
[356360769,1742339461387,-500.0,0.00035616,12]
[356360770,1742339461396,-500.0,0.00035616,12]
[356360771,1742339461406,-500.0,0.00035616,12]
[356360772,1742339461416,-1263.79,0.00035616,12]
[356360773,1742339461425,-500.0,0.00035616,12]
[356360774,1742339461435,-722.51,0.00035616,12]
[356360775,1742339461445,-841.11,0.00035616,12]
[356360776,1742339461454,-500.0,0.00035616,12]
[356360777,1742339461464,-713.87,0.00035616,12]
[356360778,1742339461474,-500.0,0.00035616,12]
[356360779,1742339461483,-582.04,0.00035616,12]
[356360780,1742339461493,-1473.86,0.00035616,12]
[356360781,1742339461503,-1912.63,0.00035616,12]
[356360782,1742339461512,-1361.67,0.00035616,12]
[356360783,1742339461522,-500.0,0.00035616,12]
[356360784,1742339461531,-500.0,0.00035616,12]
[356360785,1742339461541,-500.0,0.00035616,12]
[356360786,1742339461550,-500.0,0.00035616,12]
[356360787,1742339461560,-500.0,0.00035616,12]
[356360788,1742339461569,-509.98158869,0.00035616,12]
[356360789,1742339461579,-635.53,0.00035616,12]
[356360791,1742339461588,-500.0,0.00035616,12]
[356360792,1742339461597,-500.0,0.00035616,12]
[356360793,1742339461608,-714.31,0.00035616,12]
[356360794,1742339461617,-5988.8,0.00035616,12]
[356360795,1742339461627,-1883.04,0.00035616,12]
[356360796,1742339461637,-229.09684899,0.00035616,12]
[356360797,1742339461646,-500.0,0.00035616,12]
[356360798,1742339461656,-500.0,0.00035616,12]
[356360799,1742339461666,-2180.97,0.00035616,10]
[356360800,1742339461675,-2131.38,0.00035616,12]
[356360801,1742339461685,-1955.72,0.00035616,12]
[356360802,1742339461695,-6906.57,0.00035616,12]
[356360803,1742339462045,-500.0,0.00035616,12]
[356360804,1742339462056,-713.4,0.00035616,12]
[356360805,1742339462066,-758.94,0.00035616,12]
[356360806,1742339462075,-1357.37,0.00035616,12]
[356360807,1742339462084,-500.0,0.00035616,12]
[356360808,1742339462094,-500.0,0.00035616,12]
[356360809,1742339462103,-517.02,0.00035616,12]
[356360810,1742339462113,-1496.75,0.00035616,12]
[356360811,1742339462122,-533.89747905,0.00035616,12]
[356360812,1742339462132,-1214.53,0.00035616,12]
[356360813,1742339462141,-500.0,0.00035616,12]
[356360814,1742339462151,-500.0,0.00035616,12]
[356360815,1742339462160,-500.0,0.00035616,12]
[356360816,1742339462169,-500.0,0.00035616,12]
[356360817,1742339462179,-500.0,0.00035616,12]
[356360818,1742339462188,-2414.38,0.00035616,12]
[356360819,1742339462198,-500.0,0.00035616,12]
[356360820,1742339462208,-500.0,0.00035616,12]
[356360821,1742339462217,-500.0,0.00035616,12]
[356360822,1742339462227,-1375.9,0.00035616,12]
[356360823,1742339462236,-1974.79,0.00035616,12]
[356360824,1742339462246,-925.56,0.00035616,12]
[356360825,1742339462255,-712.94,0.00035616,12]
[356360826,1742339462264,-500.0,0.00035616,12]
[356360827,1742339462274,-839.12,0.00035616,12]
[356360828,1742339462283,-1426.33,0.00035616,12]
[356360829,1742339462293,-1067.84,0.00035616,12]
[356360830,1742339462302,-767.88,0.00035616,12]
[356360831,1742339462311,-1432.86,0.00035616,12]
[356360832,1742339462321,-780.68,0.00035616,12]
[356360833,1742339462330,-1487.69,0.00035616,12]
[356360834,1742339462340,-1216.8,0.00035616,12]
[356360835,1742339462350,-500.0,0.00035616,12]
[356360836,1742339462361,-500.0,0.00035616,12]
[356360837,1742339462371,-297.74677969,0.00035616,12]
[356360838,1742339462381,-1072.64,0.00035616,12]
[356360839,1742339462391,-1708.8,0.00035616,12]
[356360840,1742339462400,-500.0,0.00035616,12]
[356360841,1742339462410,-674.04,0.00035616,12]
[356360842,1742339462419,-500.0,0.00035616,12]
[356360843,1742339462429,-500.0,0.00035616,12]
[356360844,1742339462438,-1017.99,0.00035616,12]
[356360845,1742339462447,-1929.03,0.00035616,12]
[356360846,1742339462456,-913.22,0.00035616,12]
[356360847,1742339462466,-902.37,0.00035616,12]
[356360848,1742339462476,-1430.23,0.00035616,12]
[356360849,1742339462486,-2290.36,0.00035616,12]
[356360850,1742339462495,-500.0,0.00035616,12]
[356360851,1742339462504,-500.0,0.00035616,12]
[356360852,1742339462514,-500.0,0.00035616,12]
[356360853,1742339462523,-500.0,0.00035616,12]
[356360854,1742339462533,-500.0,0.00035616,12]
[356360855,1742339462543,-1760.11,0.00035616,12]
[356360856,1742339462553,-1638.63,0.00035616,12]
[356360857,1742339462563,-500.0,0.00035616,12]
[356360858,1742339462574,-794.12,0.00035616,12]
[356360859,1742339462584,-1729.5,0.00035616,12]
[356360860,1742339462594,-500.0,0.00035616,12]
[356360861,1742339462603,-682.57,0.00035616,12]
[356360862,1742339462615,-1045.11,0.00035616,12]
[356360863,1742339462626,-500.0,0.00035616,12]
[356360864,1742339462636,-1395.45,0.00035616,12]
[356360865,1742339462645,-1231.14,0.00035616,12]
[356360866,1742339462660,-1432.26,0.00035616,12]
[356360867,1742339462670,-1130.18,0.00035616,12]
[356360868,1742339462679,-500.0,0.00035616,12]
[356360869,1742339462688,-595.61108159,0.00035616,12]
[356360870,1742339462698,-1071.53,0.00035616,12]
[356360871,1742339462708,-500.0,0.00035616,12]
[356360872,1742339462718,-10881.54,0.00035616,12]
[356360873,1742339462727,-940.53,0.00035616,12]
[356360874,1742339462736,-500.0,0.00035616,12]
[356360875,1742339462746,-500.0,0.00035616,12]
[356360876,1742339462755,-507.85794789,0.00035616,12]
[356360877,1742339462764,-931.98,0.00035616,12]
[356360878,1742339462780,-500.0,0.00035616,12]
[356360879,1742339462789,-643.93,0.00035616,12]
[356360880,1742339462799,-1889.22,0.00035616,12]
[356360881,1742339462809,-500.0,0.00035616,12]
[356360882,1742339462819,-736.61,0.00035616,12]
[356360883,1742339462829,-500.0,0.00035616,12]
[356360884,1742339462839,-1912.43,0.00035616,12]
[356360885,1742339462849,-500.0,0.00035616,12]
[356360886,1742339462859,-500.0,0.00035616,12]
[356360887,1742339462869,-1500.0,0.00035616,12]
[356360888,1742339462880,-867.89,0.00035616,12]
[356360889,1742339462889,-500.0,0.00035616,12]
[356360890,1742339462899,-655.9,0.00035616,12]
[356360891,1742339462909,-3492.09,0.00035616,12]
[356360892,1742339462919,-500.0,0.00035616,12]
[356360893,1742339462928,-500.0,0.00035616,12]
[356360894,1742339462938,-8347.58,0.00035616,12]
[356360895,1742339462947,-500.0,0.00035616,12]